[Event "Superbet Blitz Poland 2022"]
[Site "Warsaw"]
[Date "2022.05.23"]
[Round "11.3"]
[White "So, Wesley"]
[Black "Duda, Jan-Krzysztof"]
[Result "0-1"]
[ECO "A25"]
[WhiteElo "2766"]
[BlackElo "2750"]
[Annotator "TA"]
[PlyCount "108"]
[EventDate "2022.05.22"]
[EventType "tourn"]
[EventCountry "POL"]
[SourceTitle "playchess.com"]
[Source "ChessBase"]
[SourceQuality "1"]
[TimeControl "300+2"]

{[%evp 16,108,25,20,39,45,56,39,39,38,33,24,33,25,33,18,45,18,37,26,65,61,62,52,74,28,38,32,89,89,89,87,146,132,123,-42,81,81,154,154,156,156,155,0,16,0,0,0,0,0,7,0,7,0,30,-45,0,0,0,-4,0,0,48,0,58,16,58,-10,-10,-49,-47,-145,-137,-415,-404,-589,-596,-574,-188,-188,-108,-134,-123,-160,-160,-153,-137,-434,-406,-1172,-1189,-1142,-1094,-827,-747]} 1. c4 {[%emt 0:00:03]} e5 {[%emt 0:00:02]} 2. g3 {[%emt 0:00:03]} Nc6 {[%emt 0:00:03]} 3. Nc3 {[%emt 0:00:04]} g6 {[%emt 0:00:02]} 4. Bg2 {[%emt 0:00:02]} Bg7 {[%emt 0:00:01]} 5. e3 {[%emt 0:00:11]} d6 {[%emt 0:00:07]} 6. Nge2 {[%emt 0:00:03]} f5 {[%emt 0:00:05]} 7. d3 {[%emt 0:00:15]} Nf6 {[%emt 0:00:02]} 8. O-O {[%emt 0:00:02]} O-O {[%emt 0:00:02]} 9. b3 {[%emt 0:00:01]} g5 {[%emt 0:00:39][%cal Of5f4] A25: English Opening vs King's Indian with ...Nc6 but without early d3.} 10. f4 {[%emt 0:00:07]} h6 {[%emt 0:00:02]} 11. Bb2 {[%emt 0:00:08]} Ne7 {[%emt 0:00:11] White is slightly better.} 12. Qd2 {[%emt 0:00:06]} Ng6 {[%emt 0:00:03]} 13. d4 {[%emt 0:00:44] [#]} e4 $146 {[%emt 0:00:30]} ({Predecessor:} 13... c6 14. dxe5 dxe5 15. Rad1 Qxd2 16. Rxd2 Re8 17. Rfd1 Ng4 18. Rd8 Be6 19. Rxa8 Rxa8 {½-½ (51) Dzindzichashvili,R (2553)-Browne,W (2516) San Francisco 1999}) 14. d5 {[%emt 0:00:01]} Bd7 {[%emt 0:00:10]} 15. Nd4 {[%emt 0:00:19]} g4 {[%emt 0:00:01]} 16. b4 {[%emt 0:00:08]} Qe7 {[%emt 0:00:02]} 17. Rac1 {[%emt 0:00:14]} Rfd8 {[%emt 0:00:20]} 18. Rfd1 {[%emt 0:00:06]} Qf7 {[%emt 0:00:03]} 19. c5 {[%emt 0:00:05]} Ne7 {[%emt 0:00:27]} 20. cxd6 {[%emt 0:00:22]} (20. c6 $16 bxc6 21. dxc6) 20... cxd6 $11 {[%emt 0:00:01]} 21. Bf1 {[%emt 0:00:01]} Ne8 {[%emt 0:00:54]} (21... Rdc8 $1 $14) 22. Bc4 $16 {[%emt 0:00:08]} Nc7 {[%emt 0:00:03]} 23. Bb3 {[%emt 0:00:10][%cal Oc3e4] And now Nxe4! would win.} Rac8 {[%emt 0:00:01]} ({Black should try} 23... Rdc8) 24. a4 {[%emt 0:00:17]} Kh7 {[%emt 0:00:01]} 25. Ncb5 $2 {[%emt 0:00:09]} (25. b5 $16) 25... Nxb5 {[%emt 0:00:08]} (25... Bxb5 $15 {keeps the upper hand.} 26. axb5 Bxd4 27. Bxd4 (27. Qxd4 Nxb5 28. Qd2 Rxc1 $11) 27... Nxb5) 26. axb5 {[%emt 0:00:00]} Qe8 {[%emt 0:00:36] [#]} (26... Rxc1 $142 27. Rxc1 Rc8) 27. Nc6 $1 {[%emt 0:00:25][%mdl 512]} bxc6 {[%emt 0:00:29]} 28. Bxg7 {[%emt 0:00:02][%cal Od5c6]} Kxg7 {[%emt 0:00:05]} 29. bxc6 {[%emt 0:00:03]} (29. dxc6 $16 Nxc6 30. bxc6 Bxc6 31. Qd4+ Kh7 32. Qf6 (32. Qxa7+ Qd7 $16)) 29... Rc7 {[%emt 0:00:13]} (29... Qf7 $5) 30. b5 {[%emt 0:00:28]} Nc8 {[%emt 0:00:13]} 31. cxd7 {[%emt 0:00:10]} Rcxd7 {[%emt 0:00:02]} 32. Rc6 {[%emt 0:00:08]} Kg6 {[%emt 0:00:02]} 33. h3 {[%emt 0:00:12]} h5 {[%emt 0:00:01]} 34. Ra1 {[%emt 0:00:09]} Qe7 {[%emt 0:00:02]} 35. Rca6 {[%emt 0:00:17]} (35. Rac1 $11 Nb6 36. h4) 35... Rc7 {[%emt 0:00:06]} 36. Rc6 {[%emt 0:00:02]} Rb7 {[%emt 0:00:05]} 37. Bc4 {[%emt 0:00:01]} Nb6 {[%emt 0:00:02]} 38. Be2 {[%emt 0:00:02]} Rbd7 {[%emt 0:00:04]} (38... Qf6 $11 39. Rd1 gxh3) 39. Qd1 {[%emt 0:00:04]} (39. h4 $14 {feels stronger.}) 39... Kf7 {[%emt 0:00:03]} (39... Qg7 $11) 40. Kg2 {[%emt 0:00:01]} ({Reject} 40. hxg4 hxg4 41. Bf1 Qf6 $11) 40... Rg8 {[%emt 0:00:01][%cal Bd8g8,Bg8h8,Bh8h2][%mdl 32]} 41. hxg4 {[%emt 0:00:03]} (41. h4 $14) 41... hxg4 $11 {[%emt 0:00:01]} 42. Qh1 {[%emt 0:00:03] Prevents Rh8.} Kg6 {[%emt 0:00:06] Inhibits Qh7+.} 43. Kf2 {[%emt 0:00:09]} (43. Qh4 $15) 43... Qf6 $1 $17 {[%emt 0:00:04] aiming for ...Rh8.} 44. Qd1 $2 {[%emt 0:00:05][%mdl 8192]} (44. Qc1 $17) 44... Rh8 $1 $19 {[%emt 0:00:01] White must now prevent ...Rh2+.} 45. Bf1 {[%emt 0:00:10]} (45. Qd4 $142 Rh2+ 46. Ke1) 45... Rh2+ {[%emt 0:00:05]} 46. Bg2 {[%emt 0:00:01] [#]} Qb2+ {[%emt 0:00:06]} (46... Nxd5 $1 {[%mdl 512]} 47. Qd4 Nxe3 $1 {[%mdl 512]} 48. Qxf6+ Kxf6) 47. Rc2 {[%emt 0:00:02] [#]} Qxb5 {[%emt 0:00:02] Dancing on a razor blade.} ({Better is} 47... Qh8 $1 $19 48. Qd4 Qxd4 49. exd4 Nxd5) 48. Rb1 {[%emt 0:00:01]} Qxd5 {[%emt 0:00:01] Black is more active.} 49. Rd2 {[%emt 0:00:02]} Qc5 {[%emt 0:00:02] ...Nc4 is the strong threat.} 50. Rc1 {[%emt 0:00:03]} Nc4 {[%emt 0:00:01]} 51. Rd4 $2 {[%emt 0:00:01][%mdl 8192]} (51. Rxc4 $17 {is the only way for White.} Qxc4 52. Rxd6+ Rxd6 53. Qxd6+ Kh5 54. Qd2) 51... Nxe3 {[%emt 0:00:07]} ({But not} 51... d5 {[#]} 52. Rdxc4 $1 {[%mdl 512]} Qe7 53. Rc6+ Kh7 54. R1c5 $18) 52. Kxe3 {[%emt 0:00:05]} (52. Rxc5 $142 Nxd1+ 53. Rxd1 e3+ 54. Kg1) 52... Qa3+ {[%emt 0:00:01] Black is clearly winning.} 53. Kf2 {[%emt 0:00:00]} Qf3+ {[%emt 0:00:01]} 54. Qxf3 {[%emt 0:00:04]} gxf3 {[%emt 0:00:01][%mdl 64] Pin. Black used his chance.  Weighted Error Value: White=0.55/Black=0.29 (precise)} 0-1

[Event "Superbet Blitz Poland 2022"]
[Site "Warsaw"]
[Date "2022.05.23"]
[Round "11.4"]
[White "Anand, Viswanathan"]
[Black "Korobov, Anton"]
[Result "0-1"]
[ECO "B30"]
[WhiteElo "2751"]
[BlackElo "2671"]
[Annotator "TA"]
[PlyCount "52"]
[EventDate "2022.05.22"]
[EventType "tourn"]
[EventCountry "POL"]
[SourceTitle "playchess.com"]
[Source "ChessBase"]
[SourceQuality "1"]
[TimeControl "300+2"]

{[%evp 10,52,19,0,21,0,7,-23,-21,-29,-16,-48,0,0,0,0,0,0,0,-2,-11,-8,-8,-24,-21,-29,0,-177,-148,-218,-202,-307,-289,-367,-368,-338,-294,-535,-532,-553,-556,-549,-511,-617,-586]} 1. e4 {[%emt 0:00:01]} c5 {[%emt 0:00:01]} 2. Nf3 {[%emt 0:00:01]} Nc6 {[%emt 0:00:01]} 3. Bb5 {[%emt 0:00:02]} e6 {[%emt 0:00:02]} 4. Bxc6 {[%emt 0:00:02]} bxc6 {[%emt 0:00:04]} 5. d3 {[%emt 0:00:02]} Ne7 {[%emt 0:00:02][%cal Bg8e7,Be7f5,Bf5d4][%mdl 32]} 6. h4 {[%emt 0:00:02]} d6 {[%emt 0:00:12] B30: Sicilian: 2...Nc6 3 Bb5, lines without ...g6.} 7. e5 {[%emt 0:00:06]} d5 {[%emt 0:00:08] [#]} 8. c4 $146 {[%emt 0:00:12]} ({Predecessor:} 8. Nc3 Nf5 9. b3 Qc7 10. Na4 Nd4 11. Bb2 Nxf3+ 12. Qxf3 Rb8 13. c4 Be7 14. O-O-O {1-0 (24) Muzychuk,M (2413)-Lefevre,M (1968) Moscow 2008}) 8... Nf5 {[%emt 0:00:13] Black has an edge.} 9. Nc3 {[%emt 0:00:09]} Be7 {[%emt 0:00:15]} 10. h5 {[%emt 0:00:02]} h6 {[%emt 0:00:09]} (10... O-O $15 {is superior.}) 11. b3 {[%emt 0:00:11]} O-O {[%emt 0:00:05]} 12. Na4 {[%emt 0:00:05]} f6 {[%emt 0:00:19]} 13. Bb2 {[%emt 0:00:08]} Nd4 {[%emt 0:00:32]} 14. O-O {[%emt 0:00:26]} fxe5 {[%emt 0:00:18]} 15. Nxe5 {[%emt 0:00:02]} Bd6 {[%emt 0:00:19]} 16. Bxd4 {[%emt 0:00:08]} (16. f4 $5 {[%cal Re5g6]}) 16... cxd4 {[%emt 0:00:03]} 17. Ng6 {[%emt 0:00:07]} Rf5 {[%emt 0:00:17] ...e5 is the strong threat.} 18. c5 $2 {[%emt 0:00:06]} (18. f4 $11 {and White is okay.}) 18... Bc7 $19 {[%emt 0:00:07]} 19. f4 {[%emt 0:00:04] [#]} (19. Qe2 $17) 19... Bd7 $1 {[%emt 0:00:26]} 20. g4 {[%emt 0:00:16]} (20. Qg4 $142) 20... Rf6 {[%emt 0:00:03][%cal Of6g6]} 21. Qe2 {[%emt 0:00:02] [#]} Rxg6 {[%emt 0:00:06][%mdl 512]} 22. hxg6 {[%emt 0:00:02][%cal Og4g5]} Qf6 {[%emt 0:00:01] Inhibits g5.} 23. Rf2 $2 {[%emt 0:00:12]} (23. Qh2 Rf8 24. Qh5) 23... Bxf4 {[%emt 0:00:09] Black is clearly winning.} 24. Rxf4 {[%emt 0:00:59]} Qxf4 {[%emt 0:00:02]} 25. Rf1 {[%emt 0:00:02]} Qg3+ {[%emt 0:00:09]} 26. Qg2 {[%emt 0:00:19]} Qxd3 {[%emt 0:00:04] Weighted Error Value: White=0.52/Black=0.06 (flawless)} 0-1

[Event "Superbet Blitz Poland 2022"]
[Site "Warsaw"]
[Date "2022.05.23"]
[Round "11.5"]
[White "Shevchenko, Kirill"]
[Black "Gavrilescu, David"]
[Result "0-1"]
[ECO "C02"]
[WhiteElo "2644"]
[BlackElo "2518"]
[Annotator "TA"]
[PlyCount "102"]
[EventDate "2022.05.22"]
[EventType "tourn"]
[EventCountry "POL"]
[SourceTitle "playchess.com"]
[Source "ChessBase"]
[SourceQuality "1"]
[TimeControl "300+2"]

{[%evp 16,102,-20,-15,-23,-22,-27,-24,-35,-35,-31,-41,-43,-41,-34,-33,-27,-27,-45,-54,-50,-52,-35,-38,-10,-11,-10,-12,-19,-11,58,50,73,50,75,37,75,-23,-23,-50,0,0,0,0,0,0,0,-42,-24,-92,-6,-6,0,0,13,13,20,20,18,-11,58,-11,-11,-11,-11,-11,-11,-11,-11,-139,-6,-29942,-12799,-5310,-5210,-5214,-5210,-29993,-29988,-29992,-250,-29993,-29988,-29994,-29995,-29995,-29996,-29996,-29997]} 1. e4 {[%emt 0:00:01]} e6 {[%emt 0:00:01]} 2. d4 {[%emt 0:00:02]} d5 {[%emt 0:00:01]} 3. e5 {[%emt 0:00:00]} c5 {[%emt 0:00:02]} 4. c3 {[%emt 0:00:01]} Nc6 {[%emt 0:00:01]} 5. Nf3 {[%emt 0:00:01]} Bd7 {[%emt 0:00:01]} 6. Bd3 {[%emt 0:00:02]} cxd4 {[%emt 0:00:02]} 7. cxd4 {[%emt 0:00:01]} Qb6 {[%emt 0:00:02]} 8. O-O {[%emt 0:00:02]} Nxd4 {[%emt 0:00:02]} 9. Nbd2 {[%emt 0:00:01] seems to push 9.Nxd4 aside.} Ne7 {[%emt 0:00:07] C02: French: Advance Variation.} 10. Nxd4 {[%emt 0:00:12][%mdl 64] Remove Defender} Qxd4 {[%emt 0:00:02]} 11. Nf3 {[%emt 0:00:01]} Qa4 {[%emt 0:00:01] Black has an edge. was the old line (11...Qb6).} 12. Bc2 {[%emt 0:00:52]} Qa5 {[%emt 0:00:17]} 13. Bd2 {[%emt 0:00:37]} Qd8 {[%emt 0:00:01] [#]} 14. Re1 $146 {[%emt 0:00:46]} ({Predecessor:} 14. Bg5 h6 15. Be3 Nc6 16. a3 a5 17. Re1 Be7 18. Rc1 Rc8 19. g3 g5 20. g4 {½-½ (66) Smerdon,D (2508)-Peng,Z (2398) Amsterdam 2014}) 14... Nc6 {[%emt 0:00:05]} 15. Ng5 {[%emt 0:00:28]} g6 {[%emt 0:00:35]} 16. Qf3 {[%emt 0:01:03][%csl Gg5][%cal Rf3f7]} Qe7 {[%emt 0:00:01]} 17. Qh3 {[%emt 0:00:14]} Bg7 {[%emt 0:01:27]} 18. Nf3 {[%emt 0:00:01]} h6 {[%emt 0:00:10]} 19. a3 {[%emt 0:01:15]} Rc8 {[%emt 0:00:47][%cal Oc6e5]} (19... Qc5 $5 {[%cal Rc5c2]} 20. Ba4 Qb6 $15) 20. Bd3 {[%emt 0:00:00]} Qd8 {[%emt 0:00:07]} 21. b4 {[%emt 0:00:00]} Ne7 {[%emt 0:00:02]} 22. b5 {[%emt 0:00:00]} Kf8 {[%emt 0:00:45]} (22... Nf5 $11) 23. Rac1 $14 {[%emt 0:00:00]} Kg8 {[%emt 0:00:06][%cal Oa7a6]} 24. Rxc8 {[%emt 0:00:00]} Nxc8 {[%emt 0:00:05]} 25. Qg4 {[%emt 0:00:00]} Nb6 {[%emt 0:00:06]} 26. Bb4 {[%emt 0:00:04]} (26. a4 $16) 26... Qe8 $11 {[%emt 0:00:05]} 27. Nd4 {[%emt 0:00:02]} h5 {[%emt 0:00:03]} (27... Nc4 $15 28. Bxc4 dxc4) 28. Qh4 {[%emt 0:00:03]} Nc4 {[%emt 0:00:12]} 29. Bxc4 {[%emt 0:00:05]} dxc4 {[%emt 0:00:01]} 30. a4 {[%emt 0:00:03]} a6 {[%emt 0:00:01][%cal Ra6b5]} 31. bxa6 {[%emt 0:00:02]} bxa6 {[%emt 0:00:01]} 32. Nf3 {[%emt 0:00:02] [#]} (32. Rc1 $11) 32... Bxa4 {[%emt 0:00:03]} (32... Bc6 $1 $17 {[%cal Rc6f3] Threatens to win with ...Bxf3.} 33. Qxc4 Bxf3 34. gxf3 Qxa4) 33. Qxc4 {[%emt 0:00:01]} Bb5 {[%emt 0:00:01] This bishop pair is nice.} 34. Qf4 {[%emt 0:00:01]} Bh6 {[%emt 0:00:03]} 35. Ng5 {[%emt 0:00:02][%mdl 1024] White has compensation.} Qd7 {[%emt 0:00:18]} 36. h4 {[%emt 0:00:01]} Bc6 {[%emt 0:00:07]} 37. Bd6 {[%emt 0:00:00]} a5 {[%emt 0:00:02]} (37... Bxg5 $11 38. Qxg5 Kh7) 38. Rb1 {[%emt 0:00:01]} ({White should play} 38. Rc1 $1 $14) 38... Bxg5 {[%emt 0:00:02]} 39. Qxg5 {[%emt 0:00:03] Rb8+ is the strong threat.} Kh7 $36 {[%emt 0:00:02][%mdl 2048] Black has the initiative.} 40. Rb3 {[%emt 0:00:05]} a4 {[%emt 0:00:02]} 41. Rc3 {[%emt 0:00:04]} Rc8 {[%emt 0:00:07]} 42. g4 {[%emt 0:00:01] [#]} (42. f3 $11 {remains equal.}) 42... Be4 {[%emt 0:00:03]} (42... a3 $1 $17 {[%cal Ra3a2] Hoping for ...a2.} 43. Rxa3 Qb7) 43. Re3 $2 {[%emt 0:00:02][%mdl 8192] White does not recover from this.} (43. Rxc8 $11 Qxc8 44. gxh5) 43... Rc1+ {[%emt 0:00:02]} 44. Kh2 {[%emt 0:00:00]} Rh1+ {[%emt 0:00:02]} 45. Kg3 {[%emt 0:00:01]} Rg1+ {[%emt 0:00:01]} 46. Kh3 {[%emt 0:00:06]} hxg4+ {[%emt 0:00:20]} 47. Kh2 Rg2+ {[%emt 0:00:02]} 48. Kh1 Qc6 {[%emt 0:00:00] Black mates.} 49. f3 {[%emt 0:00:06]} Bxf3 {[%emt 0:00:00]} 50. Re1 {[%emt 0:00:04]} Re2+ {[%emt 0:00:00]} 51. Kg1 {[%emt 0:00:01]} Rxe1+ {[%emt 0:00:00] Weighted Error Value: White=0.48/Black=0.18 (very precise)} 0-1

[Event "Superbet Blitz Poland 2022"]
[Site "Warsaw"]
[Date "2022.05.23"]
[Round "12.1"]
[White "Aronian, Levon"]
[Black "Shevchenko, Kirill"]
[Result "1-0"]
[ECO "B50"]
[WhiteElo "2765"]
[BlackElo "2644"]
[Annotator "TA"]
[PlyCount "135"]
[EventDate "2022.05.22"]
[EventType "tourn"]
[EventCountry "POL"]
[SourceTitle "playchess.com"]
[Source "ChessBase"]
[SourceQuality "1"]
[TimeControl "300+2"]

{[%evp 11,135,0,0,0,0,0,-7,-11,0,0,2,11,7,8,24,-5,37,23,29,21,40,39,56,25,25,19,46,29,64,26,17,10,14,0,0,-124,-126,-116,-102,-121,-125,-136,-138,-232,-79,-74,-78,-169,-168,-150,-168,-152,-139,-154,-120,-119,-77,-96,0,-41,0,-33,-12,-26,0,0,0,-3,164,161,347,326,337,330,554,547,562,545,740,539,500,497,567,454,441,450,478,365,408,413,366,350,716,660,660,677,811,800,1283,927,1277,1235,1739,1474,1610,1554,1848,1567,29982,29983,29986,29987,29987,29988,29988,29988,29990,29985,29985,29983,29986,29986,29986,29987,29989,29983]} 1. e4 {[%emt 0:00:02]} c5 {[%emt 0:00:01]} 2. Nf3 {[%emt 0:00:01]} d6 {[%emt 0:00:03]} 3. c3 {[%emt 0:00:02]} Nf6 {[%emt 0:00:02]} 4. Be2 {[%emt 0:00:01]} g6 {[%emt 0:00:20]} 5. O-O {[%emt 0:00:02]} Bg7 {[%emt 0:00:01]} 6. d3 {[%emt 0:00:01]} O-O {[%emt 0:00:03]} 7. Be3 {[%emt 0:00:01] B50: Sicilian: 2...d6, Miscellaneous.} Nc6 {[%emt 0:00:52]} 8. Nbd2 {[%emt 0:00:03]} e5 {[%emt 0:00:13] outshines the older 8...Ng4.} 9. a3 {[%emt 0:00:03] [#] The position is equal.} Ng4 $146 {[%emt 0:00:40]} ({Predecessor:} 9... h6 10. h3 Be6 11. b4 b6 12. b5 Na5 13. c4 Nh7 14. g4 f5 15. gxf5 gxf5 16. exf5 Bxf5 {0-1 (63) Aronian,L (2785)-Matlakov,M (2674) Chess.com INT 2022}) 10. Bg5 {[%emt 0:00:02]} Bf6 {[%emt 0:00:01]} 11. Bxf6 {[%emt 0:00:05]} Nxf6 {[%emt 0:00:01]} 12. b4 {[%emt 0:00:08][%cal Bb2b4,Bb4b5][%mdl 32]} b6 {[%emt 0:00:13]} 13. b5 {[%emt 0:00:12]} Ne7 {[%emt 0:00:06]} 14. d4 {[%emt 0:00:08]} Qc7 {[%emt 0:00:08]} 15. a4 {[%emt 0:00:08]} Bb7 {[%emt 0:00:33]} 16. d5 {[%emt 0:00:13]} a5 {[%emt 0:00:18]} 17. bxa6 {[%emt 0:00:11]} Bxa6 {[%emt 0:00:01]} 18. Re1 {[%emt 0:00:09]} Rfb8 {[%emt 0:00:08]} 19. Bb5 {[%emt 0:00:27]} c4 {[%emt 0:00:26]} 20. Rb1 {[%emt 0:00:07]} Bxb5 {[%emt 0:00:13]} 21. Rxb5 {[%emt 0:00:01]} Nd7 {[%emt 0:00:00][%cal Bf6d7,Bd7c5,Bc5a6,Ba6b4][%mdl 32]} 22. Rb4 {[%emt 0:00:08]} Nc5 {[%emt 0:00:02]} 23. Nxc4 {[%emt 0:00:11]} (23. Rxc4 $11 Qd7 24. Qc2) 23... Na6 $1 $17 {[%emt 0:00:07]} 24. Qb3 {[%emt 0:00:44][%cal Rc4b6]} Nxb4 {[%emt 0:00:02]} 25. Qxb4 {[%emt 0:00:01]} Nc8 {[%emt 0:00:09]} 26. Rb1 {[%emt 0:00:02]} Qd7 {[%emt 0:00:18] Strongly threatening ...b5.} 27. Nb2 {[%emt 0:00:17]} (27. Qb5 $17 Rb7 28. Qxd7 Rxd7 29. Nb2) 27... Qa7 $2 {[%emt 0:00:20]} (27... b5 $1 $19 {[%cal Rb5a4] has better winning chances.} 28. a5 Qc7) 28. Nd2 {[%emt 0:00:12]} Qa5 {[%emt 0:00:01]} 29. Ndc4 {[%emt 0:00:28]} (29. Nb3 $17 Qa6 30. c4) 29... Qxb4 $19 {[%emt 0:00:06]} 30. cxb4 {[%emt 0:00:01]} b5 {[%emt 0:00:01]} 31. axb5 Rxb5 {[%emt 0:00:00]} 32. Nd3 {[%emt 0:00:02]} Kg7 {[%emt 0:00:23]} 33. Rc1 {[%emt 0:00:15]} Rab8 {[%emt 0:00:02]} 34. g4 {[%emt 0:00:08]} Kf6 {[%emt 0:00:09]} (34... R5b7 $17) 35. h4 {[%emt 0:00:04]} h6 {[%emt 0:00:00]} 36. f3 {[%emt 0:00:05]} Ke7 {[%emt 0:00:06]} 37. Na5 {[%emt 0:00:03]} Kf8 {[%emt 0:00:00]} 38. Rc7 {[%emt 0:00:17]} Ne7 {[%emt 0:00:02]} 39. Rd7 {[%emt 0:00:16] [#]} R5b6 {[%emt 0:00:09]} (39... Nxd5 $1 $11 40. Nc6 {[#]} (40. exd5 Rxd5 41. Nc6 Rb6 $11) 40... Nb6 $1 41. Rxd6 (41. Nxb8 $2 Nxd7 42. Nxd7+ Ke7 $17) 41... Nc4 42. Nxb8 Nxd6 43. Nd7+ Ke8 44. Nf6+ (44. N7xe5 g5 $15) 44... Kf8) 40. Nc4 $1 $18 {[%emt 0:00:04][%csl LRb6,LRd6] Pair of Knights!} R6b7 $2 {[%emt 0:00:00]} (40... Ke8 {might work better.} 41. Nxb6 Rxb6) 41. Rxb7 {[%emt 0:00:08]} ({Much less strong is} 41. Rxd6 Kg7 42. Ncxe5 Nc8 $18) 41... Rxb7 {[%emt 0:00:00]} 42. Nxd6 {[%emt 0:00:01][%mdl 4096] Endgame KRN-KNN} Rb8 {[%emt 0:00:03]} (42... Rc7 43. Nxe5 f6) 43. Nxe5 {[%emt 0:00:05]} Rxb4 {[%emt 0:00:01]} 44. Ndxf7 {[%emt 0:00:01]} h5 {[%emt 0:00:02]} 45. gxh5 {[%emt 0:00:03]} gxh5 {[%emt 0:00:01]} 46. Kf2 {[%emt 0:00:01]} Kg7 {[%emt 0:00:01]} 47. Ng5 {[%emt 0:00:04] Threatens to win with d6.} Nc8 {[%emt 0:00:02]} 48. Nd3 {[%emt 0:00:06]} Ra4 {[%emt 0:00:02]} 49. Nf4 {[%emt 0:00:01][%cal Oe4e5] Hoping for e5!} Kh6 {[%emt 0:00:02]} 50. Nf7+ {[%emt 0:00:15]} Kg7 {[%emt 0:00:01]} 51. Ne5 {[%emt 0:00:02]} Nd6 $2 {[%emt 0:00:04]} (51... Kh6 52. Ke2 Nd6) 52. Nxh5+ {[%emt 0:00:03]} Kh6 {[%emt 0:00:01]} 53. Ng3 {[%emt 0:00:01]} Kg7 {[%emt 0:00:04]} 54. Ke3 {[%emt 0:00:03]} Kf6 {[%emt 0:00:01]} 55. Ng4+ {[%emt 0:00:01]} Kf7 {[%emt 0:00:01]} 56. Kf4 {[%emt 0:00:02]} Ra3 {[%emt 0:00:02]} 57. h5 {[%emt 0:00:04][%cal Bh4h5,Bh5h6][%mdl 32]} Nb5 {[%emt 0:00:03]} 58. Nf5 {[%emt 0:00:01]} Nc3 {[%emt 0:00:01]} 59. h6 {[%emt 0:00:07] White wants to mate with Kg5.} Ne2+ {[%emt 0:00:01]} 60. Kg5 {[%emt 0:00:01] White mates.} Kg8 {[%emt 0:00:03]} 61. Nf6+ {[%emt 0:00:04]} Kh8 {[%emt 0:00:02]} 62. Ne7 {[%emt 0:00:01][%cal Re7g6]} Nf4 {[%emt 0:00:04]} 63. Kg4 {[%emt 0:00:14]} Ra7 {[%emt 0:00:03]} 64. Kxf4 {[%emt 0:00:03][%cal Re7g6]} Rxe7 {[%emt 0:00:01]} 65. Ng4 {[%emt 0:00:01]} Kh7 {[%emt 0:00:02]} 66. e5 {[%emt 0:00:01][%cal Be4e5,Be5e6][%mdl 32]} Kg6 {[%emt 0:00:01]} 67. e6 {[%emt 0:00:01]} Ra7 {[%emt 0:00:04]} 68. Ke5 {[%emt 0:00:01] Never resign too early!  Weighted Error Value: White=0.27 (precise) /Black=0.35} 1-0